{"text_format":"1","workbook":"xlsx","n_sheets":2,"sheets":["Лист4","Лист1"],"not_rendered":{"charts":0,"images":0,"macros":1,"external_links":0,"defined_names":1,"comments":0,"pivot_tables":0},"unopened":[],"bounds":{"document_bytes":16777216,"sheet_cells":100000,"rows_first":2000,"rows_last":500,"rows_between":2000,"halvings":0,"cell_chars":16384,"cell_head_chars":4096},"cells_cut":0,"cells_raw":0,"read":"whole","date_system":"1900"}

{"sheet":"Лист4","index":0,"n_rows":319,"n_cols":4,"rows_kept":319,"cut":false,"hidden":true,"merged":[]}
["Интернет-приемная Ответы на вопросы"]
["RU"]
["EN"]
["Банк России сегодня"]
["Денежно-кредитная политика"]
["Банкноты и монеты"]
["Информационно-аналитические материалы"]
["Информация по кредитным организациям"]
["Финансовые рынки"]
["Финтех"]
["Национальная платежная система"]
["Кредитные истории"]
["Статистика"]
["Экономические исследования"]
["Издания Банка России"]
["Территориальные учреждения"]
["Музейно-экспозиционный фонд"]
["Пресс-служба"]
["Противодействие коррупции"]
[]
["Официальное опубликование нормативных актов Банка России"]
["Отношения с инвесторами"]
["Личный кабинет"]
[]
["Проверить участника финансового рынка"]
[]
["Контактная информация"]
["+7 499 300-30-00"]
["8 800 300-30-00"]
["Интернет-приемная Ответы на вопросы"]
[]
["Новое на сайтеRSS"]
["21 ноября 2018 г."]
["Реестр операторов платежных систем"]
["21 ноября 2018 г."]
["Условия заключения сделок «валютный своп» по продаже долларов США за рубли"]
["21 ноября 2018 г."]
["Задолженность по обеспеченным кредитам Банка России"]
["21 ноября 2018 г."]
["Депозиты банков в Банке России"]
["21 ноября 2018 г."]
["Обеспечение по операциям РЕПО c Банком России в долларах США"]
["Ключевая ставка с 17.09.2018, %",7.5]
["Инфляция октябрь 2018 года, %",3.5]
["Показатель инфляции отражает темп прироста потребительских цен к соответствующему месяцу предыдущего года"]
[]
["(источник: Федеральная служба государственной статистики)"]
[]
["Цель по инфляции,  %",4]
["Цель по инфляции устанавливается для показателя инфляции, отражающего темп прироста потребительских цен к соответствующему месяцу предыдущего года"]
[]
[]
["Основные индикаторы финансового рынка "]
[]
["Курсы валют"]
[null,"2018-11-21","2018-11-22"]
["Доллар США $","руб. 65,5871","руб. ↑65,9485"]
["Евро €","руб. 75,1825","руб. ↓75,1483"]
[]
["Учетные цены на драгоценные металлы"]
["рублей за грамм","2018-11-21"]
["Золото Au",2579.12]
["Серебро Ag",30.28]
["Платина Pt",1790.26]
["Палладий Pd",2429.19]
[]
["Ставки межбанковского кредитного рынка"]
["%","1 день","2-7 дней","8-30 дней"]
["MIACR на 19.11.2018",7.07,"— ","— "]
["RUONIA  за 19.11.2018","↑7,01"]
["%","1 день","1 неделя","1 месяц"]
["MosPrime  Rate на 20.11.2018",7.48,7.65,7.95]
["%","1 неделя","2 недели","1 месяц"]
["ROISfix  на 20.11.2018",7.35,7.37,7.4]
[]
["Параметры операций Банка России "]
[]
["Операции постоянного действия по предоставлению ликвидности"]
[]
["Кредитные операции"]
["Ставка по кредитам овернайт  с 17.09.2018, % годовых","↑8,50"]
["Ставка по ломбардным кредитам","1 день"]
["с 17.09.2018, % годовых",8.5]
["Ставки по кредитам, обеспеченным нерыночными активами","1 день","2–549 дней"]
["с 17.09.2018, % годовых",8.5,9.25]
["Условия предоставления кредитов постоянного действия "]
[]
["Своп-разница по валютному свопу"]
["руб."]
["USD/RUB buy/sell overnight  на 21.11.2018","↑0,0228"]
["EUR/RUB buy/sell overnight  на 21.11.2018","↓0,0185"]
["USD/RUB sell/buy overnight  на 21.11.2018","↑0,0100"]
["USD/RUB sell/buy tom/spot  на 21.11.2018","↑0,0151"]
[]
["Операции репо"]
[null,"на 1 день"]
["Операции репо, % годовых",8.5]
[]
["Аукционы по предоставлению ликвидности"]
["Аукционы   на 20.09.2016"]
["РЕПО"]
[null,"7 дней"]
["Лимит, млрд руб.",620]
["Мин. ставка, %",10]
["Итоги аукциона РЕПО"]
["Расписание операций РЕПО"]
["Минимальные ставки на кредитных аукционах (нерыночные активы)"]
["Параметры кредитных аукционов (нерыночные активы)"]
["Ставки по итогам кредитных аукционов (нерыночные активы)"]
["Итоги кредитных аукционов (нерыночные активы)"]
[]
["Аукционы по размещению (доразмещению) ОБР"]
["Параметры аукционов по размещению (доразмещению) ОБР"]
["Итоги аукционов по размещению (доразмещению) ОБР"]
[]
["Депозитные аукционы"]
["Максимальные ставки для депозитных аукционов"]
["Условия проведения Банком России депозитного / кредитного аукциона на срок «1 неделя»"]
["Условия проведения Банком России депозитных аукционов «тонкой настройки»"]
["Итоги депозитных аукционов"]
[]
["Депозитные операции постоянного действия"]
[]
["Ставки по депозитным операциям"]
["с 17.09.2018, % годовых"]
["Овернайт","↑6,50"]
["Условия проведения депозитных операций постоянного действия "]
[]
["Требования Банка России к кредитным организациям "]
["млн руб."]
["По кредитам овернайт  на 21.11.2018",0]
["По ломбардным кредитам  на 21.11.2018",0]
["По кредитам под нерыночные активы или поручительства  на 21.11.2018","↓426 420,6"]
["По операциям РЕПО  на 21.11.2018"]
["на аукционной основе",0]
[]
[]
["по фиксированной ставке",2778]
[]
[]
["По сделкам «валютный своп»  на 21.11.2018",0]
["По кредитам без обеспечения  на 31.12.2010",0]
[]
["Показатели ликвидности банковского сектора "]
["млрд руб."]
["Структурный дефицит/профицит ликвидности банковского сектора  на 21.11.2018","↓-3 019,5"]
["Сведения об остатках средств на корреспондентских счетах кредитных организаций"]
[]
["млрд руб."]
["По Российской Федерации на 21.11.2018","↑2 299,2"]
["По Московскому региону на 21.11.2018","↑1 939,5"]
["млрд руб."]
["Объем предоставленных внутридневных кредитов  за 20.11.2018","↑88,9"]
["млрд руб."]
["Депозиты банков в Банке России  на 21.11.2018","↓2 218,7"]
["млрд руб."]
["ОБР в обращении  на 21.11.2018",1230]
["млрд руб."]
["Сальдо операций Банка России по предоставлению/абсорбированию ликвидности на 21.11.2018","↑75,6"]
["Факторы формирования ликвидности банковского сектора"]
["Прогноз факторов формирования ликвидности банковского сектора"]
[]
["Обязательные резервные требования "]
[]
["Нормативы обязательных резервов, %"]
[null,"В валюте РФ","В ин. валюте"]
["по обязательствам перед юридическими лицами – нерезидентами "]
["для банков с универсальной лицензией, банков с базовой лицензией, небанковских кредитных организаций"]
["за исключением долгосрочных",5,8]
[]
[]
["по долгосрочным",5,8]
[]
[]
["по обязательствам перед физическими лицами"]
["для банков с универсальной лицензией, небанковских кредитных организаций",5,7]
[]
[]
["для банков с базовой лицензией",1,7]
[]
[]
["по иным обязательствам кредитных организаций"]
["для банков с универсальной лицензией, небанковских кредитных организаций"]
["за исключением долгосрочных",5,8]
[]
[]
["по долгосрочным",5,8]
[]
[]
["для банков с базовой лицензией"]
["за исключением долгосрочных",1,8]
[]
[]
["по долгосрочным",1,8]
[]
[]
[]
["Коэффициент усреднения обязательных резервов"]
["для банков с универсальной лицензией, банков с базовой лицензией",0.8]
["для небанковских кредитных организаций",1]
[]
["Международные резервы Российской Федерации "]
["09.11.2018, млрд долл. США",461.5]
[]
["Базовый уровень доходности вкладов "]
["Базовый уровень доходности вкладов ","ноябрь 2018 г."]
[]
["Среднерыночные значения полной стоимости потребительского кредита (займа) "]
["Среднерыночные значения полной стоимости потребительского кредита (займа) ","на 16.08.2018"]
[]
["События и комментарииRSS"]
["21 ноября 2018 г."]
["Фото: Станислав Красильников / ТАСС"]
["Председатель Банка России Эльвира Набиуллина выступила на пленарном заседании Государственной Думы"]
[]
["20 ноября 2018 г."]
["Требования регулирования могут быть адаптированы к модели деятельности КПК"]
[]
["20 ноября 2018 г."]
["Динамика финансового рынка России в октябре соответствовала тенденциям развивающихся рынков"]
[]
["Пресс-релизыRSS"]
["20 ноября 2018 г."]
["Перечень кредитных организаций, в которые назначены уполномоченные представители Банка России "]
["20 ноября 2018 г."]
["О результатах мониторинга максимальных процентных ставок кредитных организаций"]
["20 ноября 2018 г."]
["О выходе очередного номера «Вестника Банка России»"]
["16 ноября 2018 г."]
["О выпуске в обращение памятных монет из драгоценного металла"]
["15 ноября 2018 г."]
["Об уровнях кредитных рейтингов, устанавливаемых в соответствии с Указанием Банка России от 22 февраля 2017 года № 4297-У"]
["Личный кабинет участника информационного обмена"]
[]
["Актуальные документы"]
["Основные направления единой государственной денежно-кредитной политики на 2019 год и период 2020 и 2021 годовВажно"]
[]
["Доклад о денежно-кредитной политике - Выпуск № 3 (23) • Сентябрь 2018 годаВажно"]
[]
["Основные направления развития финансового рынка Российской Федерации на период 2019–2021 годов (проект)Важно"]
[]
["Отчет о развитии банковского сектора и банковского надзора в 2017 годуВажно"]
[]
["Обзор финансовой стабильности • IV квартал 2017 г. — I квартал 2018 г.Важно"]
[]
["Годовой отчет Банка России за 2017 год"]
[]
["Основные направления развития финансовых технологий на период 2018–2020 годов"]
["Стратегия повышения финансовой доступности в Российской Федерации на период 2018–2020 годов"]
[]
["Основные направления развития финансового рынка Российской Федерации на период 2016–2018 годовВажно"]
[]
["Дополнительные материалы"]
["Письмо Банка России и государственной корпорации «Агентство по страхованию вкладов» от 23.10.2018 № 03-40-9/8400/1/35189 «О способе доставки банку уведомления о ставке взносов государственной корпорации «Агентство по страхованию вкладов»Важно"]
[]
["Проекты нормативных актов Банка России"]
["Информационное письмо об организации условий для проведения торгов на внутреннем финансовом рынке в Российской Федерации в конце декабря 2018 года, а также с 3 по 8 января 2019 года от 19.11.2018 № ИН-01-19/68"]
[]
["График операций Банка России"]
["Перечень инсайдерской информации Банка России"]
["Реквизиты для перечисления платежей в бюджет"]
[]
["Справочная информация"]
["Сведения о средних ставках банковского процента по вкладам физических лиц в рублях, в долларах США и евро для целей применения ст. 395 ГК РФ (по федеральным округам) за период с 01.06.2015 по 31.07.2016."]
["Кредитный калькулятор для кредитных организаций"]
["Перечень нерабочих праздничных дней и перенесенных выходных дней в 2019 году"]
["Перечень нерабочих праздничных дней и перенесенных выходных дней в 2018 году"]
["Технические ресурсы"]
["Перечень системно значимых кредитных организаций Перечень банков"]
["fincult.info"]
["Образовательный портал"]
["Карта Мир. Вопросы и ответы"]
["Вопросы и ответы"]
["Центры допуска финансовых организаций: функции и процедуры"]
["Центры допуска финансовых организаций: функции и процедуры"]
["Деньги и кредит"]
["Журнал"]
["«Деньги и кредит»"]
["Маркетплейс"]
["Проект «Маркетплейс»"]
["Открытый стандарт отчетности XBRL"]
["Открытый стандарт отчетности XBRL"]
["Добровольная квалификационная оценка деятельности аудиторских организаций"]
["Добровольная квалификационная оценка деятельности аудиторских организаций"]
[]
[]
[]
[]
[]
[]
[]
[]
[]
[]
[]
[]
[]
[]
[]
[]
["О сайте"]
["Архив"]
["Поиск и карта сайта"]
["Другие ресурсы"]
["Версия для слабовидящихОбычная версия"]
["© Банк России, 2000–2018"]
["Адрес: ул. Неглинная, 12, Москва, 107016"]
[]
["Телефоны: 8 800 300-30-00 (для бесплатных звонков из регионов России), +7 499 300-30-00 (круглосуточно, по рабочим дням), факс: +7 495 621-64-65"]
[]
["Контактная информация"]
[]
["О порядке направления Банком России SMS-сообщений"]
[]
["Вся официальная контактная информация Банка России представлена на официальном сайте Банка России www.cbr.ru"]
[]
["Дизайн сайта —  Логотип Студии Артемия ЛебедеваЛоготип Студии Артемия ЛебедеваСтудия Артемия Лебедева "]
["Информация о сайте"]
["× Закрыть "]

{"sheet":"Лист1","index":1,"n_rows":33,"n_cols":11,"rows_kept":33,"cut":false,"hidden":false,"merged":[[10,9,10,10],[10,3,10,4]]}
[]
[]
[]
[]
[]
[]
[]
[]
[null,null,null,"Не работают данные в выходные и праздники",null,null,null,null,null,"В новом вообще данные не поступают"]
[]
[null,null,null,"Вариант 1",null,null,null,null,null,"Вариант 2"]
[]
[null,null,null,"2018-11-01",{"$f":"МетЦБР(4,D13)","v":2260.81},null,null,null,null,"2018-11-01",{"$f":"МЕТЦБР2(4,J13)","v":{"$error":"#VALUE!"}}]
[null,null,null,"2018-11-02",{"$f":"МетЦБР(4,D14)","v":2288.0500000000002},null,null,null,null,"2018-11-02",{"$f":"МЕТЦБР2(4,J14)","v":{"$error":"#VALUE!"}}]
[null,null,null,"2018-11-03",2327.7199999999998,null,null,null,null,"2018-11-03",{"$error":"#VALUE!"}]
[null,null,null,"2018-11-04",{"$error":"#VALUE!"},null,null,null,null,"2018-11-04",{"$error":"#VALUE!"}]
[null,null,null,"2018-11-05",{"$error":"#VALUE!"},null,null,null,null,"2018-11-05",{"$error":"#VALUE!"}]
[null,null,null,"2018-11-06",{"$error":"#VALUE!"},null,null,null,null,"2018-11-06",{"$error":"#VALUE!"}]
[null,null,null,"2018-11-07",2405.9699999999998,null,null,null,null,"2018-11-07",{"$error":"#VALUE!"}]
[null,null,null,"2018-11-08",2384.14,null,null,null,null,"2018-11-08",{"$error":"#VALUE!"}]
[null,null,null,"2018-11-09",2390.73,null,null,null,null,"2018-11-09",{"$error":"#VALUE!"}]
[null,null,null,"2018-11-10",2407.1799999999998,null,null,null,null,"2018-11-10",{"$error":"#VALUE!"}]
[null,null,null,"2018-11-11",{"$error":"#VALUE!"},null,null,null,null,"2018-11-11",{"$error":"#VALUE!"}]
[null,null,null,"2018-11-12",{"$error":"#VALUE!"},null,null,null,null,"2018-11-12",{"$error":"#VALUE!"}]
[null,null,null,"2018-11-13",2409.7399999999998,null,null,null,null,"2018-11-13",{"$error":"#VALUE!"}]
[null,null,null,"2018-11-14",2404.48,null,null,null,null,"2018-11-14",{"$error":"#VALUE!"}]
[null,null,null,"2018-11-15",2415.7199999999998,null,null,null,null,"2018-11-15",{"$error":"#VALUE!"}]
[null,null,null,"2018-11-16",2422.3200000000002,null,null,null,null,"2018-11-16",{"$error":"#VALUE!"}]
[null,null,null,"2018-11-17",2467.5700000000002,null,null,null,null,"2018-11-17",{"$error":"#VALUE!"}]
[null,null,null,"2018-11-18",{"$error":"#VALUE!"},null,null,null,null,"2018-11-18",{"$error":"#VALUE!"}]
[null,null,null,"2018-11-19",{"$error":"#VALUE!"},null,null,null,null,"2018-11-19",{"$error":"#VALUE!"}]
[null,null,null,"2018-11-20",2508.4499999999998,null,null,null,null,"2018-11-20",{"$error":"#VALUE!"}]
[null,null,null,"2018-11-21",2429.19,null,null,null,null,"2018-11-21",{"$error":"#VALUE!"}]